bitfinex-derivatives/quotes_ETHF0:USTF0_20241129
["timestamp","ask_amount","ask_price","bid_price","bid_amount"]
[1732906056969,0.27841,3588.8,3588.7,0.2784]
[1732906057264,1.14704,3589.2,3588.5,3.2078]
[1732906057265,0.27842,3588.6,3588.5,3.2078]
[1732906057665,0.27842,3588.6,3588.5,3.48622]
[1732906057868,0.4511,3589.2,3588.5,3.2078]
[1732906058066,0.27842,3588.7,3588.6,0.27841]
[1732906058566,0.4511,3589.2,3588.5,3.2078]
[1732906058763,0.27839,3589.1,3589.0,0.27838]
[1732906059668,0.27839,3589.0,3588.9,0.27839]
[1732906060768,0.4511,3589.2,3589.1,0.27838]
[1732906060769,0.72947,3589.2,3589.1,0.27838]
[1732906061066,0.27839,3589.1,3589.0,0.27838]
[1732906061874,0.27839,3589.0,3588.9,3.6213]
[1732906062072,0.27839,3589.0,3588.9,3.2078]
[1732906062365,0.27842,3588.6,3588.5,4.68281343]
[1732906063666,0.27842,3588.6,3588.5,3.76481343]
[1732906066563,0.27842,3588.6,3588.5,3.48639343]
[1732906066970,0.27842,3588.6,3588.5,3.76481343]
[1732906067169,0.68672,3588.6,3588.5,3.48639343]
[1732906067369,0.68672,3588.6,3588.5,3.76481343]
[1732906067673,0.68672,3588.6,3588.5,3.48639343]
[1732906067868,0.68672,3588.6,3588.5,3.76481343]
[1732906068871,0.68672,3588.6,3588.5,3.48639343]
[1732906069878,0.68672,3588.6,3588.5,3.76481343]
[1732906070676,0.68672,3588.6,3588.5,3.48639343]
[1732906070876,0.27845,3588.3,3588.1,0.841]
[1732906071178,0.27845,3588.3,3588.2,0.27845]
[1732906074976,0.69607,3588.5,3588.1,0.4281]
[1732906075183,0.69607,3588.5,3586.4,2.995]
[1732906075184,0.27847,3587.9,3587.8,1.19647]
[1732906075374,0.27847,3587.9,3587.8,0.27847]
[1732906076184,0.27847,3587.9,3587.8,2.61786778]
[1732906076795,0.4083,3588.6,3587.9,0.69618]
[1732906076991,0.27842,3588.6,3588.5,2.61780778]
[1732906077692,0.27842,3588.5,3588.4,0.68813]
[1732906078087,0.69597,3589.0,3588.4,0.4097]
[1732906078290,0.27842,3588.7,3588.6,0.27841]
[1732906079289,0.69597,3589.0,3588.5,0.27842]
[1732906079290,0.27842,3588.6,3588.5,0.27842]
[1732906080389,0.2784,3589.0,3588.9,0.27839]
[1732906080591,0.27841,3588.8,3588.7,0.2784]
[1732906081184,0.27841,3588.8,3588.7,0.27841]
[1732906082088,3.2078,3589.7,3588.7,3.2078]
[1732906082290,0.27833,3589.8,3589.6,0.27834]
[1732906082487,0.27831,3590.0,3589.8,0.27832]
[1732906083186,3.89691,3590.1,3589.9,0.27831]
[1732906083487,3.6186,3590.1,3590.0,0.27831]
[1732906083788,3.2078,3590.1,3590.0,0.27831]
[1732906084191,0.2783,3590.2,3590.0,0.2783]
[1732906084400,3.2078,3590.4,3589.5,5.54719778]
[1732906084605,0.27831,3590.0,3589.9,0.27832]
[1732906085292,0.4347,3590.1,3589.5,5.54719778]
[1732906085293,0.4347,3590.1,3590.0,0.27831]
[1732906085888,3.2078,3590.4,3589.5,5.54719778]
[1732906086095,3.2078,3590.4,3590.1,0.2783]
[1732906086096,0.2783,3590.2,3590.1,0.2783]
[1732906086898,3.2078,3590.4,3589.5,5.54719778]
[1732906087289,0.27828,3590.3,3590.1,0.2783]
[1732906087495,0.2783,3590.2,3590.1,0.2783]
[1732906087895,0.27831,3590.0,3589.9,0.27831]
[1732906089195,0.2783,3590.1,3590.0,0.2783]
[1732906089990,3.2078,3590.4,3589.5,6.24305778]
[1732906090195,0.2783,3590.2,3590.1,0.2783]
[1732906090998,0.2783,3590.1,3590.0,0.2783]
[1732906091704,0.27829,3590.3,3590.2,0.27829]
[1732906093412,3.2078,3590.4,3589.7,0.27852515]
[1732906093705,0.2783,3590.2,3590.1,0.2783]
[1732906094806,3.2078,3590.4,3589.7,0.27852515]
[1732906094807,0.27831,3590.1,3590.0,0.2783]
[1732906095301,0.2783,3590.2,3590.1,0.27829]
[1732906096208,0.27829,3590.3,3590.2,0.27828]
[1732906096708,0.27829,3590.3,3590.2,0.26764072]
[1732906099409,0.68907,3590.6,3590.5,0.27827]
[1732906100311,0.27825,3590.8,3590.7,0.27825]
[1732906101807,0.27827,3590.6,3590.5,0.27826]
[1732906102014,0.27827,3590.5,3590.4,3.93317]
[1732906102205,0.27827,3590.5,3590.4,3.2078]
[1732906102410,0.2783,3590.3,3590.2,0.27829]
[1732906102812,7.53271778,3590.9,3590.3,0.27827]
[1732906102813,0.27828,3590.4,3590.3,0.27827]
[1732906103014,0.27826,3590.7,3590.6,0.27825]
[1732906104013,1.2899,3590.9,3590.3,3.48608]
[1732906104014,0.27828,3590.4,3590.3,3.48608]
[1732906106110,0.27827,3590.6,3590.5,0.27826]
[1732906107212,0.27826,3590.8,3590.7,0.27825]
[1732906107513,1.2899,3590.9,3590.4,0.4383]
[1732906107813,0.27826,3590.7,3590.6,0.27825]
[1732906108409,1.2899,3590.9,3590.5,0.4467]
[1732906108603,0.27826,3590.8,3590.7,0.27825]
[1732906111815,0.27825,3590.7,3590.6,0.71086]
[1732906112213,0.4299,3590.9,3590.5,0.4467]
[1732906112516,0.27826,3590.6,3590.5,0.72496]
[1732906114613,0.27826,3590.8,3590.7,0.27825]
[1732906114808,0.4299,3590.9,3590.5,0.4467]
[1732906115115,0.27826,3590.7,3590.6,0.27825]
[1732906115523,0.27825,3590.8,3590.7,0.27825]
[1732906116006,0.70814,3590.9,3590.8,0.27825]
[1732906116617,0.70814,3590.9,3590.5,0.4467]
[1732906116618,0.4299,3590.9,3590.5,0.4467]
[1732906116923,0.27826,3590.6,3590.5,0.72496]
[1732906117113,1.12551,3590.9,3590.2,0.27847317]
[1732906117114,0.27828,3590.3,3590.2,0.27847317]
[1732906117309,0.27829,3590.2,3590.1,0.45]
[1732906117510,0.27831,3590.1,3590.0,0.2783]
[1732906117720,0.70431,3590.1,3590.0,0.2783]
[1732906118414,0.426,3590.1,3590.0,0.2783]
[1732906118818,0.8932,3590.5,3589.9,3.2078]
[1732906119014,0.4155,3590.7,3590.6,0.27826]
[1732906119214,0.27825,3590.7,3590.6,0.27826]
[1732906119422,0.27825,3590.8,3590.7,0.27824]
[1732906119917,1.2965,3591.1,3590.4,0.6957]
[1732906120124,1.2965,3591.1,3590.9,0.27823]
[1732906120125,0.27824,3591.0,3590.9,0.27823]
[1732906120517,0.27826,3590.8,3590.7,0.27824]
[1732906120820,1.99207,3591.1,3589.9,3.2078]
[1732906120821,3.2078,3591.0,3589.9,3.2078]
[1732906121022,0.27831,3590.2,3590.1,0.2783]
[1732906124525,0.27834,3589.6,3589.5,3.48614]
[1732906124721,0.27834,3589.6,3589.5,0.27834]
[1732906125225,0.27835,3589.5,3589.4,0.27835]
[1732906126222,0.27835,3589.6,3589.5,0.27834]
[1732906127723,0.27835,3589.5,3589.4,0.55683404]
[1732906130228,0.27834,3589.7,3589.6,0.27833]
[1732906130532,0.27833,3589.8,3589.7,0.27832]
[1732906130827,0.4121,3589.9,3589.6,0.27834]
[1732906130828,0.27834,3589.7,3589.6,0.27834]
[1732906134337,0.27832,3589.6,3589.5,0.70901]
[1732906140346,0.27831,3589.7,3589.6,0.2783]
[1732906140943,0.27831,3589.6,3589.5,0.70902]
[1732906142632,0.27831,3589.6,3589.5,0.4307]
[1732906142836,0.27831,3589.6,3589.5,0.70902]
[1732906144342,0.27831,3589.7,3589.6,0.2783]
[1732906151246,0.27831,3589.6,3589.5,0.70901]
[1732906151449,0.27831,3589.6,3589.1,3.2078]
[1732906151450,0.27834,3589.2,3589.1,3.2078]
[1732906151745,0.27834,3589.2,3589.1,0.27835]
[1732906152741,0.69853,3589.5,3589.4,0.27833]
[1732906153148,0.4202,3589.5,3589.4,0.27833]
[1732906153440,0.4339,3589.8,3589.7,0.27831]
[1732906153441,0.2783,3589.8,3589.7,0.27831]
[1732906154844,0.4121,3589.9,3589.6,0.27831]
[1732906154845,0.27831,3589.7,3589.6,0.27831]
[1732906157543,3.58091778,3590.1,3589.5,0.413]
[1732906157742,0.27831,3589.6,3589.5,0.69132]
[1732906160143,0.27833,3589.4,3589.3,3.2078]
[1732906160347,4.3345753,3589.4,3588.8,0.4501]
[1732906160546,1.4051453,3588.9,3588.8,0.4501]
[1732906160752,0.27839,3588.6,3588.5,3.48619]
[1732906162945,2.77352027,3589.3,3588.5,3.2078]
[1732906163142,0.27837,3588.9,3588.8,0.27837]
[1732906165244,0.8637,3589.2,3588.6,0.27838]
[1732906165245,0.27839,3588.7,3588.6,0.27838]
[1732906167656,0.69589,3589.1,3588.5,3.2078]
[1732906167851,0.27839,3588.6,3588.5,3.2078]
[1732906175156,3.2078,3588.6,3587.9,0.4084]
[1732906175368,0.27844,3588.0,3587.9,0.68684]
[1732906177666,0.27844,3588.0,3587.9,0.96545749]
[1732906178363,0.27845,3587.8,3587.7,0.4519]
[1732906178758,2.33152027,3588.3,3587.7,3.6597]
[1732906178960,0.27844,3588.1,3588.0,0.27843]
[1732906180070,0.27845,3588.0,3587.9,0.27844]
[1732906182472,5.03165827,3588.1,3587.5,0.8946]
[1732906182668,0.27847,3587.6,3587.5,0.8946]
[1732906182969,0.27847,3587.6,3587.5,0.4425]
[1732906186269,0.27847,3587.6,3587.2,3.90065553]
[1732906186270,0.27849,3587.3,3587.2,4.17914553]
[1732906186469,0.27849,3587.3,3587.2,3.622]
[1732906186677,0.27849,3587.3,3587.2,3.2078]
[1732906187080,0.27851,3587.0,3586.9,0.4368]
[1732906187572,0.27851,3587.0,3586.9,0.8508]
[1732906187773,0.27851,3587.0,3586.9,1.12932]
[1732906188772,0.27851,3587.0,3586.9,1.40797553]
[1732906189473,0.27851,3587.1,3587.0,0.2785]
[1732906192894,0.4228,3587.3,3586.9,4.33725553]
[1732906193070,0.7013,3587.3,3587.2,0.2785]
[1732906193275,0.27851,3587.1,3587.0,0.27851]
[1732906193770,0.27849,3587.3,3587.2,0.27849]
[1732906197074,0.4347,3587.7,3586.9,4.33725553]
[1732906197280,0.27848,3587.5,3587.4,0.27847]
[1732906197584,2.33308702,3588.0,3587.4,3.2078]
[1732906197882,0.27847,3587.7,3587.6,0.27846]
[1732906198885,0.69612,3587.9,3587.4,3.2078]
[1732906199185,0.27848,3587.5,3587.4,3.2078]
[1732906200185,0.27848,3587.5,3587.4,3.48628]
[1732906201174,0.27848,3587.5,3587.4,3.2078]
[1732906201679,0.27851,3587.1,3587.0,0.8792]
[1732906201984,2.33308702,3587.2,3586.9,3.2078]
[1732906202184,0.71001,3587.0,3586.9,3.2078]
[1732906202780,0.71001,3587.0,3586.6,0.8457]
[1732906202781,0.4315,3587.0,3586.6,0.8457]
[1732906202982,0.27854,3586.8,3586.7,0.27853]
[1732906203780,0.27854,3586.7,3586.6,1.12424]
[1732906204275,0.4185,3586.9,3586.6,0.8457]
[1732906204480,0.27854,3586.8,3586.7,0.27853]
[1732906205079,0.27854,3586.7,3586.6,1.12424]
[1732906206088,0.27853,3586.9,3586.8,0.27852]
[1732906206481,0.4324,3587.1,3586.6,0.8457]
[1732906206688,0.2785,3587.3,3587.2,0.27849]
[1732906207385,0.27851,3587.1,3587.0,3.2078]
[1732906207584,1.40696295,3587.1,3587.0,3.2078]
[1732906208586,0.27851,3587.1,3587.0,3.2078]
[1732906208785,1.40696295,3587.1,3587.0,3.2078]
[1732906209185,1.82196295,3587.1,3587.0,3.2078]
[1732906209782,0.27854,3586.7,3586.6,4.0535]
[1732906209986,1.40699295,3586.7,3586.6,3.92425]
[1732906210194,1.40699295,3586.7,3586.6,3.6457]
[1732906210389,0.27856,3586.4,3586.3,0.4213]
[1732906210584,0.27857,3586.3,3586.2,4.39737]
[1732906210998,0.27857,3586.3,3586.2,3.2078]
[1732906211490,0.27857,3586.3,3586.2,3.48638]
[1732906212391,1.12845295,3586.4,3586.3,0.27857]
[1732906212392,1.40701295,3586.4,3586.3,0.27857]
[1732906213190,1.12845295,3586.4,3586.2,3.2078]
[1732906213498,0.27857,3586.3,3586.2,3.48637]
[1732906213789,0.27857,3586.3,3586.2,3.2078]
[1732906214593,0.27857,3586.3,3586.2,3.48638]
[1732906216185,1.40702295,3586.4,3586.3,0.27857]
[1732906216692,1.40701295,3586.4,3586.3,0.27857]
[1732906217798,0.27856,3586.4,3586.3,0.27857]
[1732906218596,0.27857,3586.3,3586.2,3.48637]
[1732906219597,0.27857,3586.3,3586.2,3.2078]
[1732906219794,1.40702295,3586.3,3586.2,3.2078]
[1732906220102,1.40702295,3586.3,3586.2,3.48638]
[1732906221900,1.56975295,3586.5,3586.2,3.2078]
[1732906222088,0.27857,3586.4,3586.3,0.27856]
[1732906223096,0.27857,3586.3,3586.2,3.2078]
[1732906223701,0.27857,3586.3,3586.2,3.48638]
[1732906225495,0.27857,3586.3,3586.2,3.2078]
[1732906229397,0.27857,3586.3,3585.1,9.08816401]
[1732906229398,0.27861,3585.8,3585.7,0.4495]
[1732906229593,1.40706295,3585.8,3585.7,0.4495]
[1732906229802,1.12845295,3585.8,3585.5,0.45691]
[1732906230000,0.27862,3585.6,3585.5,0.01151]
[1732906230406,0.69182,3585.6,3585.5,0.01151]
[1732906230606,1.82027295,3585.6,3585.5,0.01151]
[1732906232202,1.54165295,3585.6,3585.2,0.8954]
[1732906232403,1.40710295,3585.3,3585.2,0.8954]
[1732906232703,1.40710295,3585.3,3585.2,0.4495]
[1732906232896,0.27866,3585.1,3585.0,3.6532]
[1732906233096,1.40711295,3585.1,3585.0,3.6532]
[1732906236503,1.40711295,3585.1,3585.0,3.93187]
[1732906237007,1.40711295,3585.1,3585.0,3.6532]
[1732906237599,1.40711295,3585.1,3585.0,3.93187]
[1732906238011,1.40711295,3585.1,3585.0,3.6532]
[1732906238600,1.40711295,3585.1,3585.0,3.93187]
[1732906238813,1.40711295,3585.1,3585.0,3.6532]
[1732906240111,1.40711295,3585.1,3585.0,3.2078]
[1732906241110,0.27863,3585.5,3585.2,0.27865]
[1732906241305,1.12845295,3585.9,3585.4,3.2078]
[1732906241508,0.27863,3585.6,3585.5,0.434]
[1732906241710,0.27863,3585.6,3585.5,0.71263]
[1732906242005,0.27863,3585.6,3585.5,0.434]
[1732906243108,1.12845295,3585.7,3585.5,0.434]
[1732906243109,1.12845295,3585.7,3585.6,0.27862]
[1732906243614,1.40707295,3585.7,3585.6,0.27862]
[1732906244310,0.27862,3585.6,3585.5,0.71263]
[1732906244512,0.27862,3585.6,3585.5,0.434]
[1732906244813,0.27862,3585.6,3585.1,0.91]
[1732906244814,0.27865,3585.2,3585.1,0.91]
[1732906245004,0.27866,3585.1,3585.0,3.2078]
[1732906245610,0.27866,3585.1,3585.0,3.48647]
[1732906246506,0.27865,3585.3,3585.2,0.27865]
[1732906248015,0.27866,3585.2,3585.1,0.27866]
[1732906249705,0.33731679,3585.3,3585.2,0.27865]
[1732906249904,0.05865679,3585.3,3585.2,0.27865]
[1732906250106,0.33730679,3585.3,3585.2,0.27865]
[1732906251107,0.27865,3585.3,3585.2,0.27865]
[1732906251510,0.05865679,3585.4,3585.0,3.2078]
[1732906251708,0.05865679,3585.4,3585.3,0.27865]
[1732906251914,0.33729679,3585.4,3585.3,0.27865]
[1732906252921,0.05865679,3585.4,3585.3,0.27865]
[1732906253108,0.33729679,3585.4,3585.3,0.27865]
[1732906253313,0.27864,3585.4,3585.3,0.27865]
[1732906254520,0.05865679,3585.5,3585.4,0.27864]
[1732906254521,0.33728679,3585.5,3585.4,0.27864]
[1732906254815,0.33728679,3585.5,3585.4,3.48644]
[1732906255413,0.33728679,3585.5,3585.4,0.27864]
[1732906255614,0.27864,3585.4,3585.3,3.48644]
[1732906255810,0.90435679,3585.6,3585.1,0.00844246]
[1732906256006,0.27865,3585.2,3585.1,0.00844246]
[1732906256617,0.27865,3585.2,3585.1,0.28710246]
[1732906257024,0.70675,3585.3,3585.2,0.27865]
[1732906257315,0.27865,3585.3,3585.2,0.27865]
[1732906258716,0.33729679,3585.4,3585.3,0.27865]
[1732906260016,2.33622417,3585.5,3585.1,0.00844246]
[1732906260322,0.05865679,3585.5,3585.4,0.27864]
[1732906260617,0.05865679,3585.5,3585.4,0.68614]
[1732906260818,3.90421,3586.5,3586.1,0.27857]
[1732906261014,0.27857,3586.4,3586.3,0.27857]
[1732906261522,0.27857,3586.3,3586.2,0.4309]
[1732906261716,0.71817,3586.3,3586.2,0.4309]
[1732906261912,0.71817,3586.3,3586.2,0.70948]
[1732906262414,0.71817,3586.3,3586.0,0.4394]
[1732906262415,0.4396,3586.3,3586.0,0.4394]
[1732906262616,0.27858,3586.1,3586.0,0.71798]
[1732906262817,0.27858,3586.2,3586.1,0.27858]
[1732906264221,0.2786,3586.0,3585.9,0.27859]
[1732906264522,0.27858,3586.2,3586.1,0.27858]
[1732906265818,0.27859,3586.1,3586.0,0.27859]
[1732906266118,0.27858,3586.2,3586.1,0.27858]
[1732906267623,2.33622417,3586.4,3585.8,3.6292]
[1732906267624,2.61478417,3586.4,3586.3,0.27857]
[1732906268923,0.2786,3586.0,3585.9,0.27859]
[1732906269118,0.2786,3586.0,3585.5,0.69657]
[1732906269119,2.33622417,3586.0,3585.3,3.2078]
[1732906269319,0.27863,3585.6,3585.5,0.27863]
[1732906269617,0.27863,3585.6,3585.4,0.4195]
[1732906269618,0.27862,3585.7,3585.6,0.27862]
[1732906270020,0.27863,3585.6,3585.5,0.27863]
[1732906270221,1.306,3585.9,3585.6,0.27862]
[1732906270222,0.27862,3585.7,3585.6,0.27862]
[1732906271324,0.27862,3585.7,3585.4,0.4195]
[1732906271325,1.306,3585.9,3585.4,0.4195]
[1732906271528,0.27863,3585.6,3585.5,0.27863]
[1732906271924,1.306,3585.9,3585.4,0.4195]
[1732906272223,0.27863,3585.5,3585.4,0.4195]
[1732906272423,2.33622417,3585.6,3585.1,0.00844246]
[1732906272618,0.27865,3585.2,3585.1,0.00844246]
[1732906272825,2.61487417,3585.2,3585.1,0.00844246]
[1732906274224,3.03617417,3585.2,3585.1,0.00844246]
[1732906274826,3.03617417,3585.2,3584.8,3.22613]
[1732906274827,0.27868,3584.9,3584.8,0.01833]
[1732906275125,2.61490417,3584.9,3584.8,0.01833]
[1732906278440,0.27868,3584.9,3584.8,0.29702]
[1732906278636,3.2078,3585.2,3584.8,0.01833]
[1732906278843,3.04257417,3585.3,3585.1,0.27866]
[1732906279041,3.04257417,3585.3,3585.2,0.8915]
[1732906279339,3.04257417,3585.3,3585.2,1.17015]
[1732906279543,2.61487417,3585.3,3585.2,1.17015]
[1732906280142,2.33622417,3585.3,3585.2,1.17015]
[1732906280344,2.61487417,3585.3,3585.2,1.17015]
[1732906281946,2.61487417,3585.3,3585.2,0.8915]
[1732906283748,2.33622417,3585.3,3584.8,0.01833]
[1732906284042,2.61490417,3584.9,3584.8,0.45343]
[1732906284245,2.61490417,3584.9,3584.8,0.01833]
[1732906285341,3.04520417,3584.9,3584.8,0.01833]
[1732906286746,2.76652417,3584.9,3584.3,3.2078]
[1732906286954,0.27872,3584.4,3584.3,3.48652]
[1732906289750,2.61494417,3584.5,3584.4,0.27872]
[1732906290061,2.33622417,3584.5,3584.3,3.2078]
[1732906290354,0.27872,3584.4,3584.3,3.48652]
[1732906290955,0.27872,3584.4,3584.3,3.2078]
[1732906291145,0.27872,3584.4,3584.3,3.48652]
[1732906291349,0.27872,3584.4,3584.3,3.2078]
[1732906291549,0.27872,3584.4,3584.3,3.48652]
[1732906294056,0.27872,3584.4,3584.3,3.2078]
[1732906294359,0.27872,3584.4,3584.3,3.48652]
[1732906295461,0.27872,3584.4,3584.3,3.2078]
[1732906296250,0.69682,3584.3,3583.4,3.2078]
[1732906296455,2.61497417,3584.0,3583.9,0.27875]
[1732906296860,2.33622417,3584.0,3583.5,0.69697]
[1732906297062,0.27876,3583.9,3583.8,0.27876]
[1732906297260,2.33622417,3584.0,3583.9,0.27876]
[1732906298871,2.61494417,3584.4,3584.3,0.27872]
[1732906299062,2.61494417,3584.4,3584.3,3.48652]
[1732906299258,0.8381,3584.9,3584.3,3.2078]
[1732906299462,0.2787,3584.8,3584.7,0.27869]
[1732906299961,0.27869,3585.0,3584.9,0.27867]
[1732906300163,2.61488417,3585.2,3585.1,0.27866]
[1732906300865,0.27868,3585.1,3585.0,0.27866]
[1732906301167,2.33622417,3585.6,3585.0,0.17]
[1732906301363,0.27865,3585.3,3585.2,0.27865]
[1732906301557,2.33622417,3585.6,3585.1,4.0656]
[1732906301757,2.61485417,3585.6,3585.5,0.27863]
[1732906302559,2.61485417,3585.6,3585.5,3.48643]
[1732906305071,2.61485417,3585.6,3585.5,3.2078]
[1732906305369,0.27864,3585.4,3585.3,0.27864]
[1732906305670,0.27865,3585.2,3585.1,4.0656]
[1732906305966,2.61487417,3585.2,3585.1,3.2078]
[1732906306170,0.27868,3584.9,3584.8,0.27868]
[1732906306363,0.27868,3584.9,3584.7,3.2078]
[1732906306364,0.27869,3584.8,3584.7,3.48649]
[1732906306769,2.33622417,3585.2,3584.7,3.2078]
[1732906306969,0.27868,3584.9,3584.8,0.27868]
[1732906307170,0.27868,3584.9,3584.7,3.2078]
[1732906307171,2.33622417,3585.2,3584.9,0.27867]
[1732906307474,0.27866,3585.1,3584.9,0.27867]
[1732906308072,0.27866,3585.1,3584.7,3.2078]
[1732906308274,0.27866,3585.1,3584.9,0.27867]
[1732906308571,2.03099,3585.5,3584.9,0.27867]
[1732906308770,0.27869,3584.8,3584.7,3.2078]
[1732906313274,0.27869,3584.8,3584.7,3.48649]
[1732906313473,0.27869,3584.8,3584.7,3.2078]
[1732906314976,0.27872,3584.4,3584.3,0.429]
[1732906315182,0.27869,3584.8,3584.2,3.2078]
[1732906315183,0.27872,3584.3,3584.2,3.2078]
[1732906317978,2.33622417,3584.4,3583.8,3.2078]
[1732906318283,2.33622417,3584.4,3583.6,0.29048]
[1732906318284,0.27877,3583.7,3583.6,0.29048]
[1732906318778,0.27877,3583.7,3583.6,0.0117]
[1732906321477,0.27882,3583.1,3582.6,0.4497]
[1732906321684,0.27884,3582.8,3582.6,0.4497]
[1732906321873,0.4421,3583.0,3582.6,0.4497]
[1732906322075,0.27885,3582.7,3582.6,0.4497]
[1732906322584,0.27885,3582.7,3582.6,0.72856]
[1732906322778,0.27885,3582.7,3582.6,0.4497]
[1732906322987,0.4421,3583.0,3582.6,0.4497]
[1732906323285,0.27884,3582.8,3582.6,0.72855]
[1732906324090,0.27885,3582.7,3582.6,0.72855]
[1732906324281,0.27885,3582.7,3582.6,0.4497]
[1732906326084,0.72093,3583.0,3582.8,0.27884]
[1732906326277,0.4421,3583.0,3582.6,0.72855]
[1732906326482,0.4421,3583.0,3582.4,3.6507]
[1732906326682,0.4421,3583.0,3582.5,0.27886]
[1732906326881,0.27886,3582.6,3582.4,3.92957]
[1732906327184,0.27885,3582.7,3582.4,3.6507]
[1732906327382,0.27885,3582.7,3582.6,0.27886]
[1732906327578,0.4421,3583.0,3582.4,3.6507]
[1732906327789,0.4421,3583.0,3582.4,3.92957]
[1732906327994,0.4421,3583.0,3582.4,3.6507]
[1732906328286,0.27886,3582.6,3582.4,3.92957]
[1732906328487,0.4421,3583.0,3582.4,3.6507]
[1732906328690,2.33622417,3582.7,3582.4,3.2078]
[1732906328992,0.27886,3582.5,3582.4,3.2078]
[1732906329186,0.70016,3582.6,3582.4,3.2078]
[1732906329395,0.4213,3582.6,3582.4,3.2078]
[1732906329691,0.27886,3582.5,3582.4,3.2078]
[1732906329884,3.47540417,3583.0,3582.6,0.27885]
[1732906329885,0.27885,3582.8,3582.6,0.27885]
[1732906330079,0.27884,3582.9,3582.8,0.27884]
[1732906330387,0.27884,3582.8,3582.7,0.27885]
[1732906330686,3.05715417,3583.0,3582.8,0.27884]
[1732906330984,3.2078,3583.3,3582.7,0.69712]
[1732906331185,2.33622417,3583.8,3583.2,3.2078]
[1732906331383,0.905,3584.0,3583.2,3.2078]
[1732906331384,2.33622417,3583.4,3583.2,3.2078]
[1732906331587,0.27882,3583.1,3582.8,0.8725]
[1732906331787,0.27883,3582.9,3582.8,0.8725]
[1732906332184,0.8611,3583.3,3582.8,0.8725]
[1732906332890,0.8611,3583.3,3583.2,0.27881]
[1732906333192,2.33622417,3583.4,3583.3,0.2788]
[1732906333491,2.33622417,3583.4,3582.9,0.4143]
[1732906333691,0.27882,3583.2,3583.1,0.27881]
[1732906334495,0.27881,3583.2,3583.1,0.27881]
[1732906335186,0.27881,3583.2,3583.1,0.27882]
[1732906335696,0.27883,3583.0,3582.9,0.69313]
[1732906335999,0.27881,3583.2,3582.9,0.4143]
[1732906336291,0.27881,3583.2,3583.1,0.27882]
[1732906337590,2.33622417,3583.4,3582.9,0.4143]
[1732906337785,0.27882,3583.1,3583.0,0.27883]
[1732906337990,2.33622417,3583.4,3582.8,0.8725]
[1732906338181,0.27883,3582.9,3582.8,0.8725]
[1732906338386,0.27887,3582.4,3582.3,3.48668]
[1732906338584,0.27887,3582.4,3582.3,3.6421]
[1732906339082,0.27887,3582.4,3582.3,3.92098]
[1732906339294,0.27887,3582.4,3582.3,3.6421]
[1732906339499,2.33622417,3582.6,3582.3,3.6421]
[1732906339794,2.33622417,3582.6,3582.5,0.27886]
[1732906340094,0.27887,3582.4,3582.3,3.6421]
[1732906340988,0.27887,3582.4,3582.3,3.2078]
[1732906342988,2.33622417,3582.6,3582.3,3.2078]
[1732906342989,0.27887,3582.5,3582.4,0.27887]
[1732906343392,2.61508417,3582.6,3582.5,0.27886]
[1732906344093,0.27887,3582.5,3582.4,0.27887]
[1732906344290,0.27887,3582.4,3582.3,3.2078]
[1732906344793,0.27887,3582.5,3582.4,0.27887]
[1732906345394,0.27887,3582.4,3582.3,3.2078]
[1732906345593,0.27887,3582.4,3582.3,3.48668]
[1732906346196,0.27887,3582.5,3582.4,0.27887]
[1732906346397,2.33622417,3583.0,3582.3,3.2078]
[1732906346703,2.33622417,3583.0,3582.8,0.27884]
[1732906346704,0.27884,3582.9,3582.8,0.27884]
[1732906347100,0.27884,3582.8,3582.7,3.2078]
[1732906347589,0.27888,3582.4,3582.3,0.27887]
[1732906348094,0.27888,3582.3,3582.2,3.48668]
[1732906348496,0.27888,3582.3,3582.2,3.2078]
[1732906348692,0.27888,3582.3,3582.2,3.48669]
[1732906349599,0.8832,3582.5,3582.2,3.2078]
[1732906349799,2.61508417,3582.6,3582.5,0.27886]
[1732906350096,0.27887,3582.5,3582.4,0.27887]
[1732906350996,2.33622417,3583.0,3582.2,3.2078]
[1732906351197,0.27885,3582.8,3582.7,0.27884]
[1732906351392,0.27884,3582.9,3582.8,0.27883]
[1732906351599,2.61505417,3583.0,3582.9,0.27883]
[1732906352600,2.994,3583.3,3582.7,0.4082]
[1732906352803,0.27884,3583.0,3582.9,0.27882]
[1732906353999,0.27882,3583.2,3583.1,0.2788]
[1732906354411,2.33622417,3583.4,3582.7,0.4082]
[1732906354595,2.33622417,3583.0,3582.7,0.4082]
[1732906354797,0.27884,3582.8,3582.7,0.4082]
[1732906356095,2.33622417,3582.9,3582.2,3.2078]
[1732906356301,0.27888,3582.3,3582.2,3.2078]
[1732906356496,0.27887,3582.6,3582.5,0.27885]
[1732906357609,2.33622417,3582.9,3582.2,3.2078]
[1732906357810,0.27888,3582.5,3582.4,0.27887]
[1732906358705,0.27888,3582.4,3582.3,0.27888]
[1732906359208,0.27887,3582.5,3582.4,0.27887]
[1732906359410,0.27888,3582.3,3582.2,3.48668]
[1732906359606,0.69711,3582.8,3582.2,3.2078]
[1732906359801,0.27887,3582.5,3582.4,0.27886]
[1732906363112,0.27888,3582.3,3582.2,3.2078]
[1732906364716,0.2789,3582.1,3582.0,0.4256]
[1732906365413,0.2789,3582.1,3581.9,0.27891]
[1732906365708,0.27892,3581.8,3581.7,3.2078]
[1732906366118,0.27895,3581.4,3581.3,3.2078]
[1732906367317,0.27896,3581.3,3581.2,0.4257]
[1732906372007,3.03356417,3581.7,3581.4,0.27895]
[1732906372008,2.33622417,3581.7,3581.4,0.27895]
[1732906372213,2.33622417,3581.7,3581.2,3.6335]
[1732906372514,0.27895,3581.5,3581.4,0.27894]